bitfinex/quotes_ETHUSD_20240816
["timestamp","ask_amount","ask_price","bid_price","bid_amount"]
[1723835588495,3.819,2618.5,2618.3,0.10852891]
[1723835588696,3.819,2618.5,2618.0,5.552935]
[1723835589134,3.819,2618.5,2618.1,0.10874029]
[1723835589633,7.81417661,2618.7,2618.1,0.10874029]
[1723835589940,3.81905,2618.5,2618.1,0.88356032]
[1723835590107,3.81905,2618.5,2618.1,0.10874029]
[1723835590313,3.81941,2618.2,2618.1,0.10874029]
[1723835590526,3.81941,2618.2,2617.8,9.6935]
[1723835590845,3.81941,2618.2,2617.8,1.351379]
[1723835590846,3.8197,2618.1,2617.8,1.351379]
[1723835590994,3.81979,2618.0,2617.5,13.61534]
[1723835591192,3.81979,2618.0,2617.9,0.1089517]
[1723835591424,3.81979,2618.0,2617.5,15.27122117]
[1723835591820,3.81946,2618.2,2617.6,3.82027]
[1723835592166,3.81946,2618.2,2617.6,3.92953888]
[1723835592313,3.81963,2618.1,2617.6,3.92953888]
[1723835592941,3.81963,2618.1,2617.6,0.10926888]
[1723835593136,3.81973,2618.0,2617.6,0.10926888]
[1723835593580,3.81956,2618.1,2617.6,0.10926888]
[1723835593941,3.81956,2618.1,2617.6,3.92954888]
[1723835596271,3.81921,2618.4,2617.9,3.81982]
[1723835596475,3.81902,2618.5,2617.9,3.81976]
[1723835596764,7.63808,2618.5,2617.9,7.63954]
[1723835596964,3.81902,2618.5,2618.0,0.10878669]
[1723835597541,3.81902,2618.5,2618.0,3.92845669]
[1723835598273,3.81912,2618.4,2618.0,0.10878669]
[1723835598486,3.81927,2618.3,2618.0,0.10878669]
[1723835598691,3.81927,2618.3,2617.7,6.27054]
[1723835598860,3.81927,2618.3,2618.1,0.10866052]
[1723835599046,3.81927,2618.3,2617.8,3.81995]
[1723835599257,3.81927,2618.3,2618.2,0.10855482]
[1723835599481,3.81927,2618.3,2617.7,10.09059]
[1723835599654,3.81927,2618.3,2618.2,0.10855482]
[1723835599997,3.81927,2618.3,2617.8,3.81996]
[1723835600159,3.81927,2618.3,2618.2,0.10855482]
[1723835600351,3.81927,2618.3,2617.8,3.81996]
[1723835600553,3.81927,2618.3,2618.2,0.10855482]
[1723835600761,3.81942,2618.2,2617.7,6.27052]
[1723835601149,3.81942,2618.2,2617.7,10.09059]
[1723835601344,6.37987661,2618.7,2617.7,4.191559]
[1723835601596,7.63785,2618.6,2618.1,3.81948]
[1723835601754,7.63782,2618.6,2618.1,3.81948]
[1723835601954,3.8189,2618.6,2618.1,3.81948]
[1723835602448,7.63781,2618.6,2618.1,3.81948]
[1723835602649,3.81899,2618.5,2618.0,3.8197]
[1723835603569,3.81935,2618.3,2617.8,6.28157]
[1723835604345,3.81935,2618.3,2617.9,0.10887193]
[1723835604585,7.63872,2618.3,2617.9,0.10887193]
[1723835604793,3.81935,2618.3,2617.9,0.10887193]
[1723835605377,3.81909,2618.5,2617.9,4.94964812]
[1723835605748,3.81909,2618.5,2618.0,3.81959]
[1723835606250,3.81909,2618.5,2618.1,0.10866052]
[1723835606687,7.63816,2618.5,2618.1,0.10866052]
[1723835606853,3.81907,2618.5,2618.1,0.10866052]
[1723835607198,7.63813,2618.5,2618.1,0.10866052]
[1723835607479,7.63813,2618.5,2617.9,3.81974]
[1723835607480,3.81912,2618.4,2617.9,3.81974]
[1723835607677,3.81912,2618.4,2618.2,0.10853652]
[1723835607864,3.81912,2618.4,2617.9,3.81974]
[1723835607865,3.81912,2618.4,2617.9,7.63952]
[1723835608065,3.81912,2618.4,2618.3,0.10843084]
[1723835608261,3.81912,2618.4,2617.9,3.81974]
[1723835608465,3.81912,2618.4,2618.3,0.10843084]
[1723835608672,3.81938,2618.3,2617.8,6.28151]
[1723835608901,3.81943,2618.2,2617.8,6.28151]
[1723835609273,3.81994,2617.9,2617.6,2.3254]
[1723835609604,3.8198,2618.0,2617.4,3.82051]
[1723835609783,3.8198,2618.0,2617.5,0.614591]
[1723835610199,3.8198,2618.0,2617.5,4.435021]
[1723835610759,3.8198,2618.0,2617.5,0.614591]
[1723835610958,3.8198,2618.0,2617.4,7.64097]
[1723835611195,3.8198,2618.0,2617.5,3.82043]
[1723835613162,3.8198,2618.0,2617.4,3.82058]
[1723835613509,3.82031,2617.6,2617.2,7.32]
[1723835613664,3.8206,2617.4,2617.2,7.32]
[1723835614088,3.82089,2617.2,2616.8,9.5844]
[1723835614291,3.82089,2617.2,2616.8,2.2644]
[1723835614604,3.82089,2617.2,2616.8,6.08585]
[1723835615158,3.82089,2617.2,2616.6,3.82165]
[1723835615159,3.82089,2617.2,2616.6,3.82162]
[1723835615363,3.82089,2617.2,2616.7,3.82152]
[1723835617181,7.64129,2617.4,2616.7,3.82152]
[1723835617387,3.82062,2617.4,2616.8,3.82138]
[1723835617701,4.584749,2617.4,2616.8,3.82138]
[1723835618005,4.584749,2617.4,2616.8,7.64276]
[1723835618217,3.82038,2617.6,2617.0,3.82116]
[1723835618586,6.26264,2617.7,2617.0,3.82116]
[1723835619119,3.82029,2617.6,2617.0,7.64219]
[1723835619421,3.82029,2617.6,2617.1,3.93068456]
[1723835619585,2.4425,2617.7,2617.1,3.93068456]
[1723835619793,2.4425,2617.7,2617.3,3.82071]
[1723835620100,2.4425,2617.7,2617.4,0.10953103]
[1723835621013,2.4425,2617.7,2617.2,3.82087]
[1723835621172,3.499856,2617.7,2617.5,0.10942528]
[1723835621375,3.499856,2617.7,2617.2,3.82087]
[1723835621575,7.320006,2617.7,2617.2,3.82087]
[1723835622011,7.320006,2617.7,2617.3,0.10963679]
[1723835622519,7.320006,2617.7,2617.4,0.10953103]
[1723835622985,7.320006,2617.7,2617.1,7.64185]
[1723835623194,3.81995,2617.9,2617.5,0.10942528]
[1723835623390,3.82015,2617.7,2617.1,3.82088]
[1723835623615,3.82015,2617.7,2617.6,0.10931953]
[1723835624027,5.2619,2618.0,2617.6,0.10931953]
[1723835624328,3.81985,2617.9,2617.4,3.82058]
[1723835624506,3.81985,2617.9,2617.7,0.1092138]
[1723835624706,3.81985,2617.9,2617.4,3.82058]
[1723835624916,3.81985,2617.9,2617.8,0.10910807]
[1723835625141,6.08161,2618.0,2617.5,3.82042]
[1723835625456,3.88573846,2618.3,2617.6,2.4968]
[1723835625605,2.4376,2618.4,2617.6,2.4968]
[1723835625810,2.4376,2618.4,2617.9,7.63953]
[1723835626052,2.4376,2618.4,2618.0,0.10890095]
[1723835626352,2.4376,2618.7,2618.3,3.81919]
[1723835626507,6.25607,2618.9,2618.3,3.81918]
[1723835626701,3.81847,2618.9,2618.4,0.10844586]
[1723835626910,3.929,2619.1,2618.4,0.10844586]
[1723835627117,7.74719,2619.1,2618.4,0.10844586]
[1723835627331,8.765669,2619.1,2618.4,3.92753586]
[1723835627539,3.81833,2619.0,2618.4,3.92747586]
[1723835627850,4.947479,2619.1,2618.4,0.10844586]
[1723835628020,3.81862,2618.8,2618.2,3.81932]
[1723835628226,3.81862,2618.8,2618.3,0.10855154]
[1723835628426,2.50396814,2619.5,2618.4,2.57317747]
[1723835628626,2.4376,2619.5,2618.9,3.81837]
[1723835628954,2.4376,2619.5,2619.0,0.10781196]
[1723835628955,3.06974381,2619.5,2619.0,0.10781196]
[1723835629153,2.4376,2619.5,2619.1,3.81799]
[1723835629354,6.2547,2619.8,2619.2,3.81794]
[1723835629570,6.2547,2619.8,2619.2,3.92554072]
[1723835630161,6.2547,2619.8,2619.2,7.74341072]
[1723835630329,3.0,2619.7,2619.2,3.92547072]
[1723835630725,2.4376,2619.8,2619.4,3.81766]
[1723835630944,7.74585,2620.0,2619.4,3.81766]
[1723835631161,3.81697,2619.9,2619.5,0.1070717]
[1723835631531,8.90872346,2620.0,2619.3,3.8178]
[1723835631730,8.90872346,2620.0,2619.6,0.10696612]
[1723835631731,3.81685,2620.0,2619.6,0.10696612]
[1723835631931,3.81685,2620.0,2619.4,3.81757]
[1723835632142,3.81685,2620.0,2619.7,0.10686054]
[1723835632326,3.81685,2620.0,2619.4,7.63514]
[1723835632528,2.4376,2620.1,2619.8,0.10675498]
[1723835632735,6.25386,2620.4,2619.8,3.81705]
[1723835632986,3.81665,2620.1,2619.9,0.10664942]
[1723835633433,3.81665,2620.1,2620.0,0.10654387]
[1723835633638,3.81665,2620.1,2619.5,3.81745]
[1723835633846,0.763319,2620.0,2619.6,0.10696612]
[1723835634052,3.81665,2620.1,2619.6,0.10696612]
[1723835634249,4.310626,2620.3,2619.7,3.81712]
[1723835634250,3.81644,2620.3,2619.7,3.81712]
[1723835634563,3.8165,2620.2,2619.8,0.10675498]
[1723835634924,3.8165,2620.2,2619.4,3.81757]
[1723835634925,3.8165,2620.2,2619.4,3.81756]
[1723835635122,0.44485225,2620.1,2619.9,0.10664942]
[1723835635467,0.44485225,2620.1,2620.0,0.10654387]
[1723835635635,4.26158225,2620.1,2619.6,3.81737]
[1723835635841,3.81673,2620.1,2619.7,0.10686054]
[1723835636919,7.63426,2619.8,2619.0,3.81815]
[1723835637121,3.81708,2619.8,2619.1,3.81799]
[1723835637369,3.81726,2619.7,2619.1,3.81799]
[1723835637668,3.81739,2619.6,2619.1,3.81799]
[1723835637869,3.81739,2619.6,2618.9,10.32]
[1723835637870,3.81754,2619.5,2618.9,7.32]
[1723835638154,7.63491,2619.6,2619.0,3.81824]
[1723835638318,6.13151,2619.9,2619.3,3.81778]
[1723835638733,3.81709,2619.8,2619.1,3.81808]
[1723835638931,5.204833,2619.8,2619.1,3.81802]
[1723835639159,3.81709,2619.8,2619.1,3.81802]
[1723835639565,3.81727,2619.7,2619.1,3.81802]
[1723835639720,3.81709,2619.8,2619.2,3.81791]
[1723835639925,3.81709,2619.8,2619.3,3.81773]
[1723835640122,3.81709,2619.8,2619.3,7.63546]
[1723835640348,3.81709,2619.8,2619.3,3.81773]
[1723835640873,3.81709,2619.8,2619.3,7.63546]
[1723835641035,6.13144,2619.9,2619.3,7.63545]
[1723835641363,7.137479,2619.9,2619.3,3.81772]
[1723835641568,7.137479,2619.9,2619.3,7.63545]
[1723835641726,6.14276,2620.2,2619.4,3.81758]
[1723835641927,3.81716,2619.8,2618.9,9.7184]
[1723835642142,3.81716,2619.8,2619.2,3.81782]
[1723835642578,3.81716,2619.8,2619.3,3.81771]
[1723835642776,3.81716,2619.8,2619.2,3.81782]
[1723835642777,3.81687,2620.0,2619.4,3.81764]
[1723835642995,3.81687,2620.0,2619.5,3.81745]
[1723835643361,6.14277,2620.2,2619.6,3.81736]
[1723835643699,3.81706,2619.9,2619.3,7.32]
[1723835644000,3.81706,2619.9,2619.4,3.81766]
[1723835644567,3.81687,2620.0,2619.5,3.81751]
[1723835644778,2.3262,2620.2,2619.6,3.81733]
[1723835644992,2.3262,2620.2,2619.7,3.81715]
[1723835645363,6.14272,2620.2,2619.7,3.81715]
[1723835645563,6.14272,2620.2,2619.6,7.63462]
[1723835645762,6.14272,2620.2,2619.6,3.81729]
[1723835646586,6.14272,2620.2,2619.6,7.63458]
[1723835646807,6.14272,2620.2,2619.6,3.81729]
[1723835647009,3.81665,2620.1,2619.6,3.81729]
[1723835647581,3.81665,2620.1,2619.6,7.63458]
[1723835647987,3.81665,2620.1,2619.6,7.63457]
[1723835648384,6.1427,2620.2,2619.7,3.81721]
[1723835648714,3.0,2620.3,2619.8,3.81708]
[1723835648869,2.42663514,2620.5,2620.0,3.81669]
[1723835649072,5.3603,2620.5,2620.0,3.81669]
[1723835649374,6.17558,2621.1,2620.6,3.81584]
[1723835649705,3.81499,2621.3,2620.8,3.8156]
[1723835650089,3.81499,2621.3,2620.9,0.10534561]
[1723835650290,3.81424,2621.8,2621.0,3.8915361]
[1723835650511,3.81424,2621.8,2620.9,0.10534561]
[1723835650512,3.81424,2621.8,2621.2,3.81497]
[1723835650874,3.8144,2621.7,2621.3,0.1048743]
[1723835651071,3.81424,2621.8,2620.6,0.381584]
[1723835651072,2.3603,2621.5,2620.6,3.81585]
[1723835651280,2.3603,2621.5,2621.4,0.10476886]
[1723835651493,3.81516,2621.2,2620.6,3.81585]
[1723835651970,3.81516,2621.2,2620.7,0.10543719]
[1723835652209,3.81498,2621.3,2620.7,4.31324591]
[1723835652415,3.81484,2621.4,2620.7,8.12890591]
[1723835652715,3.929,2621.3,2620.7,3.92109719]
[1723835652874,3.81484,2621.4,2620.7,3.92108719]
[1723835653079,3.8145,2621.6,2620.9,3.81536]
[1723835653281,3.81461,2621.5,2620.9,7.63075]
[1723835653502,3.81461,2621.5,2621.0,0.10513366]
[1723835653503,3.81462,2621.5,2621.0,0.10513366]
[1723835654014,3.8145,2621.6,2621.0,0.10513366]
[1723835654630,3.8145,2621.6,2621.0,3.92037366]
[1723835655302,7.62905,2621.6,2621.0,3.92037366]
[1723835655473,1.3331074,2621.6,2621.0,0.10513366]
[1723835655678,5.702024,2621.7,2620.7,3.81569]
[1723835655679,3.81498,2621.3,2620.7,3.81569]
[1723835655920,3.81571,2620.8,2620.2,2.3428]
[1723835656088,3.929,2621.3,2620.2,2.3428]
[1723835656089,0.381498,2621.2,2620.2,2.3428]
[1723835656286,3.81517,2621.2,2620.6,3.81582]
[1723835656503,3.81547,2621.0,2620.4,3.81613]
[1723835656722,3.81554,2620.9,2620.4,3.81613]
[1723835657016,3.81542,2621.0,2620.4,3.81613]
[1723835657175,3.81542,2621.0,2620.2,9.97558]
[1723835657515,3.81576,2620.8,2620.2,3.81636]
[1723835658327,3.81579,2620.7,2620.0,3.81671]
[1723835658876,3.816,2620.6,2620.0,3.81671]
[1723835659271,3.81608,2620.5,2620.0,3.81671]
[1723835659475,3.81608,2620.5,2620.0,7.63342]
[1723835659700,3.81579,2620.7,2620.0,3.81671]
[1723835659926,3.81579,2620.7,2620.1,3.81657]
[1723835660221,7.63165,2620.7,2620.1,3.81657]
[1723835660519,3.81579,2620.7,2620.1,3.81657]
[1723835661024,4.589627,2621.1,2620.1,0.997608]
[1723835661025,3.81526,2621.1,2620.1,0.997608]
[1723835661246,3.81526,2621.1,2620.4,3.8162]
[1723835661452,3.81534,2621.0,2620.5,3.81605]
[1723835661743,4.196786,2621.1,2620.6,3.81589]
[1723835661744,3.81526,2621.1,2620.6,3.81589]
[1723835661946,5.3516,2621.4,2620.9,3.81538]
[1723835661947,2.3516,2621.4,2620.9,3.81538]
[1723835662103,11.389,2621.9,2621.0,3.81525]
[1723835662104,3.81447,2621.6,2621.0,3.81525]
[1723835662301,3.81447,2621.6,2620.9,6.15818]
[1723835662302,3.81447,2621.6,2621.1,4.812523]
[1723835662721,3.81447,2621.6,2621.1,8.627703]
[1723835662936,3.81447,2621.6,2621.1,4.812523]
[1723835663145,3.81447,2621.6,2621.1,3.81518]
[1723835663619,3.81447,2621.6,2620.9,6.15818]
[1723835663620,3.81447,2621.6,2621.0,3.81522]
[1723835663834,3.81447,2621.6,2620.9,6.15818]
[1723835664106,3.81447,2621.6,2621.0,3.81527]
[1723835664407,3.81447,2621.6,2621.0,3.92019285]
[1723835664863,3.81447,2621.6,2621.0,0.10492285]
[1723835665052,3.8147,2621.5,2621.0,0.10492285]
[1723835665252,4.431077,2621.6,2621.0,3.92016285]
[1723835665410,3.81447,2621.6,2621.0,3.92016285]
[1723835665606,2.3516,2621.8,2621.0,0.10492285]
[1723835665855,7.63038,2621.1,2621.0,0.10492285]
[1723835666368,3.8157,2620.8,2620.2,9.89619]
[1723835666650,3.8157,2620.8,2620.2,6.07977]
[1723835666809,3.81585,2620.7,2620.3,0.10212763]
[1723835667005,3.8157,2620.8,2620.3,0.10212763]
[1723835667237,3.8157,2620.8,2620.3,3.81627]
[1723835667443,3.8157,2620.8,2620.4,0.10202211]
[1723835667444,3.81579,2620.7,2620.4,0.10202211]
[1723835667752,3.81604,2620.6,2620.0,2.2634]
[1723835668064,3.81579,2620.7,2620.1,3.81655]
[1723835668267,3.81579,2620.7,2620.2,3.81649]
[1723835668407,3.81579,2620.7,2620.2,0.10231491]
[1723835668606,3.81576,2620.8,2620.2,0.10231491]
[1723835668872,7.63153,2620.8,2620.2,3.91879491]
[1723835669150,3.81587,2620.7,2620.2,0.10231491]
[1723835669528,1.2560512,2620.8,2620.3,3.81627]
[1723835669727,3.81563,2620.8,2620.2,0.10231491]
[1723835670045,3.81563,2620.8,2620.4,0.1021113]
[1723835670244,3.81563,2620.8,2620.3,3.91855682]
[1723835670457,3.81563,2620.8,2620.5,0.10200579]
[1723835670642,3.81563,2620.8,2620.4,0.1021113]
[1723835670844,3.81563,2620.8,2620.6,0.10190029]
[1723835671013,7.74442,2621.0,2620.5,0.10200579]
[1723835671355,3.88150903,2621.2,2620.6,3.91772029]
[1723835671356,3.81508,2621.2,2620.6,3.91772029]
[1723835671539,3.81527,2621.1,2620.6,0.10190029]
[1723835672254,2.2556,2621.4,2620.8,3.81552]
[1723835672558,3.81468,2621.5,2620.9,6.56193185]
[1723835672738,3.81468,2621.5,2621.0,3.81526]
[1723835672923,9.88445,2621.7,2621.0,3.91670438]
[1723835673130,3.81476,2621.4,2621.0,0.10144438]
[1723835673317,3.81515,2621.2,2621.0,0.10144438]
[1723835673510,3.81515,2621.2,2620.6,7.32]
[1723835673741,11.55808,2621.6,2621.1,0.10133892]
[1723835673956,11.55808,2621.6,2621.0,3.81533]
[1723835673957,3.81451,2621.6,2621.0,6.07871]
[1723835674257,3.81463,2621.5,2621.2,0.10123347]
[1723835674423,3.81463,2621.5,2621.1,0.10133892]
[1723835674625,3.81463,2621.5,2621.3,0.10112803]
[1723835674832,3.81463,2621.5,2621.2,0.10123347]
[1723835674833,7.6298,2621.3,2621.2,0.10123347]
[1723835675157,3.81554,2620.9,2620.6,7.32]
[1723835675358,3.81572,2620.8,2620.4,2.2634]
[1723835675540,3.81582,2620.7,2620.2,3.81641]
[1723835675744,3.81572,2620.8,2620.2,4.8668692]
[1723835676051,3.81454,2621.6,2621.0,2.2634]
[1723835676226,3.8147,2621.5,2621.1,0.60788]
[1723835676424,3.81454,2621.6,2621.1,3.81509]
[1723835676624,3.81454,2621.6,2621.0,6.07873]
[1723835677158,3.81477,2621.4,2621.0,2.2634]
[1723835677396,3.81454,2621.6,2621.0,6.07872]
[1723835677686,3.81454,2621.6,2621.0,9.89397]
[1723835677822,3.81454,2621.6,2621.0,6.686522]
[1723835678168,3.81454,2621.6,2621.0,10.501782]
[1723835678358,6.06986,2621.8,2621.2,3.81494]
[1723835678528,3.81426,2621.8,2621.3,0.381494]
[1723835678733,7.62852,2621.8,2621.3,0.381494]
[1723835678961,7.62852,2621.8,2621.1,3.81507]
[1723835678962,3.81421,2621.8,2621.1,3.81507]
[1723835679559,3.81441,2621.7,2621.2,0.10125259]
[1723835679767,3.81489,2621.4,2621.2,0.10125259]
[1723835679993,3.8149,2621.3,2621.2,0.10125259]
[1723835680194,3.8149,2621.3,2620.8,3.81559]
[1723835680398,3.8149,2621.3,2621.2,0.10125259]
[1723835680600,3.81463,2621.5,2620.9,3.81538]
[1723835681102,2.2556,2621.8,2621.0,0.1014635]
[1723835681305,7.63038,2621.1,2621.0,0.1014635]
[1723835681503,3.81556,2620.9,2620.4,2.2634]
[1723835681989,8.393548,2621.1,2620.4,6.07952]
[1723835682201,8.393548,2621.1,2620.5,3.81597]
[1723835682202,4.578228,2621.1,2620.5,3.81597]
[1723835682349,2.2556,2621.2,2620.7,3.81574]
[1723835682549,2.2556,2621.5,2620.5,3.81599]
[1723835682913,3.81532,2621.1,2620.4,2.2634]
[1723835683254,3.81532,2621.1,2620.5,3.81592]
[1723835683670,3.81532,2621.1,2620.5,7.6319]
[1723835683856,0.763027,2621.1,2620.5,3.81592]
[1723835684056,3.81554,2620.9,2620.4,2.2634]
[1723835684596,3.81554,2620.9,2620.4,6.07958]
[1723835685094,3.81554,2620.9,2620.4,2.2634]
[1723835685409,3.81578,2620.7,2620.1,3.81659]
[1723835685706,3.816,2620.6,2620.0,2.478]
[1723835686209,3.816,2620.6,2620.0,6.29476]
[1723835686584,3.81652,2620.2,2619.7,7.32]
[1723835686799,3.81652,2620.2,2619.5,3.8174]
[1723835686994,3.81675,2620.1,2619.5,3.8174]
[1723835687553,3.81652,2620.2,2619.4,7.32]
[1723835687554,3.8169,2620.0,2619.4,7.32]
[1723835687724,3.81693,2620.0,2619.4,7.32]
[1723835687927,17.02203591,2621.7,2619.4,7.32]
[1723835687928,3.81463,2621.5,2620.6,2.478]
[1723835688127,2.4174,2621.9,2621.2,3.81496]
[1723835688340,6.23145,2621.9,2621.0,3.81529]
[1723835688524,3.81429,2621.8,2620.9,3.81548]
[1723835688855,3.81458,2621.6,2620.9,3.81548]
[1723835689014,3.81458,2621.6,2621.0,3.81533]
[1723835689214,3.81429,2621.8,2621.1,3.81515]
[1723835689414,3.81429,2621.8,2621.2,3.81502]
[1723835689615,2.4174,2621.9,2621.2,3.81502]
[1723835689616,6.23143,2621.9,2621.2,3.81502]
[1723835689984,9.23143,2621.9,2621.2,3.81502]
[1723835690124,3.8142,2621.8,2621.0,3.81533]
[1723835690459,3.81514,2621.2,2620.4,3.81617]
[1723835690679,2.798914,2621.1,2620.0,6.29473]
[1723835690972,3.81581,2620.7,2620.1,3.81664]
[1723835691116,3.81597,2620.6,2620.2,0.381664]
[1723835691317,3.81646,2620.3,2619.4,4.61167401]
[1723835691674,3.81646,2620.3,2619.6,3.81725]
[1723835692735,2.4174,2620.5,2619.7,3.8171]
[1723835693034,2.4174,2620.5,2620.0,3.81675]
[1723835693476,3.0,2620.7,2620.2,3.81638]
[1723835693689,6.23301,2620.9,2620.2,4.579681]
[1723835693836,2.4174,2620.9,2620.3,3.81632]
[1723835694282,2.4174,2621.2,2620.5,3.81593]
[1723835694642,2.4174,2621.2,2620.6,0.09676285]
[1723835694977,2.4174,2621.2,2620.8,3.81561]
[1723835695187,2.4174,2621.2,2620.7,3.81565]
[1723835695355,2.4174,2621.6,2620.9,0.09644639]
[1723835695557,2.4174,2621.6,2621.1,3.81516]
[1723835695769,2.4174,2621.6,2621.0,0.09632522]
[1723835695954,3.81477,2621.4,2621.2,0.09611431]
[1723835696157,2.4174,2621.1,2620.8,7.32]
[1723835696362,2.4174,2621.1,2620.5,12.17]
[1723835696363,3.81587,2620.7,2619.9,4.61102401]
[1723835696543,0.381587,2620.6,2620.0,1.32701866]
[1723835696747,3.81589,2620.7,2619.9,3.81682]
[1723835697045,3.81589,2620.7,2620.1,3.81655]
[1723835697445,3.81551,2620.9,2620.3,3.81633]
[1723835697662,0.76554,2621.0,2620.3,3.81623]
[1723835697844,0.699818,2620.9,2620.3,7.63247]
[1723835698080,0.76554,2621.0,2620.4,3.8161]
[1723835698393,0.76554,2621.0,2620.1,7.63317]
[1723835698394,3.81549,2620.9,2620.1,7.63317]
[1723835698591,3.81565,2620.8,2620.2,3.81649]
[1723835698885,4.896839,2620.9,2620.2,3.81649]
[1723835699187,0.5662379,2620.8,2620.2,3.81649]
[1723835699391,0.5662379,2620.8,2620.3,3.81634]
[1723835699693,0.76554,2621.0,2620.3,3.81634]
[1723835699694,0.76554,2621.0,2620.3,7.63251]
[1723835699840,4.58096,2621.0,2620.3,7.63251]
[1723835700247,6.23266,2621.1,2620.0,1.99043657]
[1723835700445,3.81496,2621.3,2620.5,3.81595]
[1723835700993,6.26289,2621.5,2620.7,3.81567]
[1723835701202,2.4482,2621.5,2620.9,3.81534]
[1723835701404,2.4482,2621.5,2621.0,0.381534]
[1723835701702,2.4482,2621.5,2620.9,3.81534]
[1723835701850,3.815,2621.3,2620.7,3.81571]
[1723835702048,6.26287,2621.5,2620.8,3.81551]
[1723835702446,3.81478,2621.4,2620.9,3.81546]
[1723835702668,2.4482,2621.5,2621.0,3.8153]
[1723835702876,3.8144,2621.7,2621.1,3.81507]
[1723835703189,3.81409,2621.9,2621.3,3.81489]
[1723835703396,4.815491,2621.9,2621.2,3.81502]
[1723835703597,3.81426,2621.8,2621.2,3.81502]
[1723835703921,4.815491,2621.9,2621.3,3.81489]
[1723835704081,10.01375,2622.1,2621.4,7.62931]
[1723835704285,2.3861,2622.1,2621.6,3.81444]
[1723835704479,3.8135,2622.3,2621.7,3.81427]
[1723835704684,2.3861,2622.4,2621.5,7.32]
[1723835704888,3.81369,2622.2,2621.5,7.32]
[1723835705129,3.81374,2622.1,2621.5,11.13452]
[1723835705266,3.81385,2622.1,2621.5,7.32]
[1723835705616,3.81385,2622.1,2621.5,11.1346]
[1723835705820,4.600465,2622.1,2621.5,11.1346]
[1723835706523,0.23861,2622.3,2621.6,3.81446]
[1723835706524,3.81344,2622.3,2621.6,3.81446]
[1723835706669,3.81361,2622.2,2621.6,3.81434]
[1723835706875,3.81361,2622.2,2621.6,7.62871]
[1723835707320,3.8141,2621.9,2621.5,7.32]
[1723835707622,3.81446,2621.6,2621.5,7.32]
[1723835707822,2.3994,2621.4,2620.7,3.81567]
[1723835708229,0.381431,2621.6,2620.4,2.4284]
[1723835708230,0.381431,2621.6,2621.1,3.81517]
[1723835708431,6.2138,2621.7,2621.1,0.763053]
[1723835708579,6.2138,2621.7,2621.1,3.81517]
[1723835708925,3.0813427,2622.2,2621.6,3.81435]
[1723835709081,2.3994,2622.2,2621.6,3.81435]
[1723835709283,6.21302,2622.2,2621.7,0.095497]
[1723835709591,2.3994,2622.2,2621.8,3.81409]
[1723835709792,10.02588,2622.5,2621.9,3.81395]
[1723835710149,6.593964,2622.5,2622.0,7.62774]
[1723835710331,6.593964,2622.5,2622.0,0.09511581]
[1723835710535,0.6593964,2622.4,2622.0,0.09511581]
[1723835710746,0.6593964,2622.4,2622.1,0.09498213]
[1723835711052,0.6593964,2622.4,2621.9,3.81394]
[1723835711199,0.72533604,2622.3,2622.2,0.09487676]
[1723835711406,0.72533604,2622.3,2621.9,3.81394]
[1723835711645,10.02589,2622.5,2622.2,0.09487676]
[1723835711843,3.81332,2622.4,2621.9,3.81394]
[1723835712049,1.002596,2622.3,2621.9,3.81394]
[1723835712248,2.4902,2622.2,2620.9,8.11413401]
[1723835712453,2.494,2621.9,2620.7,3.81568]
[1723835712670,5.238,2622.0,2620.5,3.81593]
[1723835712671,2.494,2621.3,2620.5,3.81593]
[1723835712949,3.81534,2621.0,2620.5,3.81593]
[1723835713846,6.30898,2621.3,2620.5,3.81593]
[1723835714055,3.81527,2621.1,2620.5,7.63191]
[1723835714272,0.630898,2621.2,2620.5,3.81606]
[1723835714408,6.30898,2621.3,2620.7,3.81568]
[1723835714736,2.494,2621.8,2621.1,3.81508]
[1723835714940,2.494,2621.8,2621.4,3.81467]
[1723835715249,2.494,2621.8,2621.3,3.81481]
[1723835715420,2.494,2621.8,2621.4,3.81475]
[1723835715749,6.30781,2622.1,2621.5,3.81453]
[1723835715957,10.83793896,2622.1,2621.5,3.81458]
[1723835716138,11.27318,2622.5,2621.2,2.4692]
[1723835716139,3.81353,2622.3,2621.2,2.4692]
[1723835716461,3.81332,2622.4,2621.8,3.81409]
[1723835716619,6.30722,2622.5,2621.9,3.81394]
[1723835716819,2.494,2622.5,2622.0,3.81386]
[1723835717149,6.3072,2622.5,2622.0,3.81386]
[1723835717354,3.81294,2622.7,2622.1,3.81362]
[1723835717510,3.81294,2622.7,2622.0,3.81379]
[1723835717511,3.81318,2622.5,2622.0,3.81379]
[1723835717912,3.81288,2622.7,2621.6,7.32]
[1723835718146,3.81367,2622.2,2621.7,3.8143]
[1723835718460,6.30767,2622.2,2621.6,11.13443]
[1723835718764,3.81338,2622.4,2621.9,3.81401]
[1723835718921,7.62676,2622.4,2621.8,3.81414]
[1723835719113,1.012076,2622.3,2621.8,3.81414]
[1723835719311,4.825596,2622.3,2621.7,7.62851]
[1723835719509,4.825596,2622.3,2621.7,3.81423]
[1723835719817,0.8638976,2622.2,2621.7,3.81423]
[1723835720216,2.494,2622.5,2621.8,3.81415]
[1723835720217,6.30729,2622.5,2621.8,3.81415]
[1723835720572,6.30729,2622.5,2621.9,3.81394]
[1723835720729,10.62619,2622.6,2622.0,3.81375]
[1723835720914,0.68131,2622.5,2622.0,3.81375]
[1723835721640,4.4945,2622.5,2622.0,3.81375]
[1723835721808,0.68131,2622.5,2622.0,3.81375]
[1723835722011,3.8129,2622.7,2622.2,3.81357]